[Event "*** Titled Tuesday Blitz"]
[Site "Chess.com"]
[Date "2020.05.19"]
[Round "8"]
[White "Baby_Legs"]
[Black "Alopekos"]
[Result "0-1"]
[WhiteElo "2704"]
[BlackElo "2503"]
[TimeControl "180+1"]
[EndTime "13:36:46 PDT"]
[Termination "Alopekos won by checkmate"]

1. Nf3 {[%clk 0:03:00.9]} 1... Nf6 {[%clk 0:02:58.6]} 2. e3 {[%clk 0:03:01.1]}
2... c5 {[%clk 0:02:51.6]} 3. d4 {[%clk 0:02:59.5]} 3... e6 {[%clk 0:02:43.7]}
4. Bd3 {[%clk 0:02:57.4]} 4... Nc6 {[%clk 0:02:42.5]} 5. O-O {[%clk 0:02:56.9]}
5... Be7 {[%clk 0:02:31.2]} 6. b3 {[%clk 0:02:57]} 6... O-O {[%clk 0:02:30.4]}
7. Bb2 {[%clk 0:02:57.2]} 7... b6 {[%clk 0:02:28.8]} 8. dxc5 {[%clk 0:02:48.9]}
8... bxc5 {[%clk 0:02:22.7]} 9. c4 {[%clk 0:02:48.5]} 9... d6 {[%clk 0:02:16.4]}
10. Nc3 {[%clk 0:02:45.7]} 10... Bb7 {[%clk 0:02:14.7]} 11. Qe2 {[%clk
0:02:45.6]} 11... a6 {[%clk 0:01:57.9]} 12. Rad1 {[%clk 0:02:45.4]} 12... Qc7
{[%clk 0:01:57.7]} 13. Bb1 {[%clk 0:02:44.5]} 13... Rad8 {[%clk 0:01:45.9]} 14.
h3 {[%clk 0:02:28]} 14... Rfe8 {[%clk 0:01:37.4]} 15. Ng5 {[%clk 0:02:16]} 15...
h6 {[%clk 0:01:32.8]} 16. f4 {[%clk 0:02:16.2]} 16... d5 {[%clk 0:01:09.4]} 17.
Nf3 {[%clk 0:02:04.9]} 17... d4 {[%clk 0:00:59.2]} 18. Ne4 {[%clk 0:01:56.9]}
18... Nxe4 {[%clk 0:00:44.3]} 19. Bxe4 {[%clk 0:01:57.8]} 19... Bf6 {[%clk
0:00:43.9]} 20. exd4 {[%clk 0:01:44.1]} 20... cxd4 {[%clk 0:00:39.1]} 21. Bb1
{[%clk 0:01:30.8]} 21... Qxf4 {[%clk 0:00:12.7]} 22. Kh1 {[%clk 0:00:53.5]}
22... Qe3 {[%clk 0:00:09.6]} 23. Rfe1 {[%clk 0:00:16.2]} 23... Qxe2 {[%clk
0:00:07.3]} 24. Rxe2 {[%clk 0:00:17.1]} 24... e5 {[%clk 0:00:05]} 25. Be4 {[%clk
0:00:17.2]} 25... Na5 {[%clk 0:00:02.7]} 26. Bxb7 {[%clk 0:00:16.6]} 26... Nxb7
{[%clk 0:00:03.6]} 27. Nd2 {[%clk 0:00:16.6]} 27... Nc5 {[%clk 0:00:03.4]} 28.
Ne4 {[%clk 0:00:17]} 28... Nxe4 {[%clk 0:00:03.5]} 29. Rxe4 {[%clk 0:00:17.9]}
29... g6 {[%clk 0:00:02.8]} 30. g4 {[%clk 0:00:18.2]} 30... Bg7 {[%clk 0:00:03]}
31. Rf1 {[%clk 0:00:18.2]} 31... Rf8 {[%clk 0:00:02.1]} 32. Kg2 {[%clk
0:00:14.8]} 32... f5 {[%clk 0:00:02]} 33. gxf5 {[%clk 0:00:15.7]} 33... gxf5
{[%clk 0:00:02.4]} 34. Ree1 {[%clk 0:00:16]} 34... e4 {[%clk 0:00:02.2]} 35. Kg3
{[%clk 0:00:16.1]} 35... d3 {[%clk 0:00:02.4]} 36. Bxg7 {[%clk 0:00:15.6]} 36...
Kxg7 {[%clk 0:00:03.3]} 37. Kf4 {[%clk 0:00:16.3]} 37... Kf6 {[%clk 0:00:03.8]}
38. Rg1 {[%clk 0:00:16.2]} 38... d2 {[%clk 0:00:03.4]} 39. Rd1 {[%clk
0:00:16.1]} 39... Rd3 {[%clk 0:00:03.7]} 40. Rg3 {[%clk 0:00:16]} 40... Rxg3
{[%clk 0:00:03]} 41. Kxg3 {[%clk 0:00:16.9]} 41... Rd8 {[%clk 0:00:03.3]} 42.
Kf4 {[%clk 0:00:16.7]} 42... Rd3 {[%clk 0:00:03.5]} 43. c5 {[%clk 0:00:15.8]}
43... Rf3# {[%clk 0:00:03.9]} 0-1

[Event "*** Titled Tuesday Blitz"]
[Site "Chess.com"]
[Date "2020.05.19"]
[Round "8"]
[White "ChadBiryani"]
[Black "enriquetejedor"]
[Result "0-1"]
[WhiteElo "2298"]
[BlackElo "2466"]
[TimeControl "180+1"]
[EndTime "13:36:47 PDT"]
[Termination "enriquetejedor won by checkmate"]

1. d4 {[%clk 0:02:56.4]} 1... Nf6 {[%clk 0:02:59.2]} 2. Bf4 {[%clk 0:02:55.9]}
2... d5 {[%clk 0:02:58.1]} 3. Nc3 {[%clk 0:02:55.3]} 3... Bf5 {[%clk 0:02:55.1]}
4. e3 {[%clk 0:02:54.3]} 4... e6 {[%clk 0:02:50.5]} 5. Nf3 {[%clk 0:02:46.8]}
5... Bd6 {[%clk 0:02:42.9]} 6. Ne5 {[%clk 0:02:37.6]} 6... O-O {[%clk 0:02:32]}
7. Bd3 {[%clk 0:02:33.3]} 7... Bxd3 {[%clk 0:02:28.2]} 8. Nxd3 {[%clk
0:02:29.8]} 8... Bxf4 {[%clk 0:02:25.7]} 9. Nxf4 {[%clk 0:02:30.6]} 9... Nbd7
{[%clk 0:02:25.9]} 10. O-O {[%clk 0:02:30.4]} 10... c5 {[%clk 0:02:26.2]} 11. a3
{[%clk 0:02:23.5]} 11... Rc8 {[%clk 0:02:24.4]} 12. Rc1 {[%clk 0:02:22.6]} 12...
a6 {[%clk 0:02:23.3]} 13. h3 {[%clk 0:02:21.3]} 13... Qb6 {[%clk 0:02:21.9]} 14.
Rb1 {[%clk 0:02:19.1]} 14... cxd4 {[%clk 0:02:16.3]} 15. exd4 {[%clk 0:02:20]}
15... Rc4 {[%clk 0:02:13.5]} 16. Nce2 {[%clk 0:02:19.5]} 16... Rfc8 {[%clk
0:01:52.4]} 17. c3 {[%clk 0:02:19.3]} 17... Qd6 {[%clk 0:01:49.2]} 18. Nd3
{[%clk 0:02:14.8]} 18... Ne4 {[%clk 0:01:38.6]} 19. f4 {[%clk 0:02:09.8]} 19...
b5 {[%clk 0:01:17.7]} 20. Rf3 {[%clk 0:02:07.1]} 20... a5 {[%clk 0:01:13.2]} 21.
f5 {[%clk 0:01:51.5]} 21... e5 {[%clk 0:00:44.8]} 22. Qe1 {[%clk 0:01:00]} 22...
f6 {[%clk 0:00:41]} 23. Qh4 {[%clk 0:00:54.2]} 23... Nd2 {[%clk 0:00:39.9]} 24.
Rbf1 {[%clk 0:00:47.1]} 24... e4 {[%clk 0:00:34.7]} 25. Ndf4 {[%clk 0:00:37]}
25... exf3 {[%clk 0:00:33]} 26. Rd1 {[%clk 0:00:24.8]} 26... fxe2 {[%clk
0:00:28.6]} 27. Rxd2 {[%clk 0:00:24.9]} 27... Qxf4 {[%clk 0:00:28.8]} 28. Qxf4
{[%clk 0:00:23.8]} 28... e1=Q+ {[%clk 0:00:28.5]} 29. Kh2 {[%clk 0:00:24.3]}
29... Re8 {[%clk 0:00:19]} 30. Rd3 {[%clk 0:00:20.5]} 30... Qe7 {[%clk
0:00:10.4]} 31. Rg3 {[%clk 0:00:19.9]} 31... Nf8 {[%clk 0:00:10.5]} 32. Qf3
{[%clk 0:00:20]} 32... Rcc8 {[%clk 0:00:08.8]} 33. Qxd5+ {[%clk 0:00:20.3]}
33... Kh8 {[%clk 0:00:09.1]} 34. Qxb5 {[%clk 0:00:21]} 34... Qc7 {[%clk
0:00:09]} 35. h4 {[%clk 0:00:18.1]} 35... Re3 {[%clk 0:00:08.9]} 36. Qf1 {[%clk
0:00:06.9]} 36... Qxg3+ {[%clk 0:00:06.4]} 37. Kg1 {[%clk 0:00:07.5]} 37... Rce8
{[%clk 0:00:06.8]} 38. h5 {[%clk 0:00:08.1]} 38... Re1 {[%clk 0:00:07]} 39. d5
{[%clk 0:00:04.7]} 39... Rxf1+ {[%clk 0:00:07.9]} 40. Kxf1 {[%clk 0:00:04.2]}
40... Re1# {[%clk 0:00:08.7]} 0-1

[Event "*** Titled Tuesday Blitz"]
[Site "Chess.com"]
[Date "2020.05.19"]
[Round "8"]
[White "Luibov_AN"]
[Black "CalinGheorghiu"]
[Result "1-0"]
[WhiteElo "2095"]
[BlackElo "2261"]
[TimeControl "180+1"]
[EndTime "13:36:47 PDT"]
[Termination "Luibov_AN won on time"]

1. d4 {[%clk 0:02:51.6]} 1... Nf6 {[%clk 0:02:49.5]} 2. Nf3 {[%clk 0:02:42.8]}
2... d5 {[%clk 0:02:48.1]} 3. c4 {[%clk 0:02:42.4]} 3... e6 {[%clk 0:02:48]} 4.
Nc3 {[%clk 0:02:38.5]} 4... Bb4 {[%clk 0:02:48.1]} 5. Bd2 {[%clk 0:02:35.9]}
5... O-O {[%clk 0:02:46.7]} 6. e3 {[%clk 0:02:36.1]} 6... c5 {[%clk 0:02:46.2]}
7. cxd5 {[%clk 0:02:33.5]} 7... exd5 {[%clk 0:02:28.2]} 8. Bd3 {[%clk 0:02:31]}
8... Nc6 {[%clk 0:02:26.4]} 9. O-O {[%clk 0:02:30.3]} 9... cxd4 {[%clk
0:02:20.6]} 10. exd4 {[%clk 0:02:26.7]} 10... Bg4 {[%clk 0:02:19.6]} 11. h3
{[%clk 0:02:25.2]} 11... Bxf3 {[%clk 0:02:17.8]} 12. Qxf3 {[%clk 0:02:25.3]}
12... Nxd4 {[%clk 0:02:17.2]} 13. Qf4 {[%clk 0:02:10.4]} 13... Nc6 {[%clk
0:01:48.4]} 14. Qh4 {[%clk 0:02:05]} 14... d4 {[%clk 0:01:25.4]} 15. Nb1 {[%clk
0:01:52.2]} 15... Bxd2 {[%clk 0:01:23.2]} 16. Nxd2 {[%clk 0:01:52.1]} 16... h6
{[%clk 0:01:23.9]} 17. Nf3 {[%clk 0:01:49.6]} 17... Qd5 {[%clk 0:01:19.8]} 18.
b3 {[%clk 0:01:47.3]} 18... b5 {[%clk 0:00:54.5]} 19. Rac1 {[%clk 0:01:45]}
19... Rfe8 {[%clk 0:00:39.6]} 20. Rfd1 {[%clk 0:01:43.4]} 20... Rad8 {[%clk
0:00:37.3]} 21. Bb1 {[%clk 0:01:21.5]} 21... Re2 {[%clk 0:00:17]} 22. Rd3 {[%clk
0:00:44.9]} 22... Rde8 {[%clk 0:00:09.8]} 23. Rcd1 {[%clk 0:00:44.1]} 23... R8e4
{[%clk 0:00:06.6]} 24. Qg3 {[%clk 0:00:41.9]} 24... Nh5 {[%clk 0:00:06.4]} 25.
Qc7 {[%clk 0:00:37]} 25... Nf4 {[%clk 0:00:06.9]} 26. Qc8+ {[%clk 0:00:24.9]}
26... Re8 {[%clk 0:00:06.4]} 27. Qg4 {[%clk 0:00:19]} 27... Nxd3 {[%clk
0:00:06.3]} 28. Bxd3 {[%clk 0:00:18.8]} 28... Rxa2 {[%clk 0:00:06.2]} 29. Kh2
{[%clk 0:00:17.6]} 29... Qxb3 {[%clk 0:00:06.2]} 30. Nh4 {[%clk 0:00:17.5]}
30... Rxf2 {[%clk 0:00:04.9]} 31. Nf5 {[%clk 0:00:17]} 31... g6 {[%clk 0:00:04]}
32. Nxh6+ {[%clk 0:00:16.9]} 32... Kf8 {[%clk 0:00:04.5]} 33. Nxf7 {[%clk
0:00:15.8]} 33... Kxf7 {[%clk 0:00:04.4]} 34. Bxg6+ {[%clk 0:00:14.6]} 34... Ke7
{[%clk 0:00:04.9]} 35. Re1+ {[%clk 0:00:14.3]} 35... Kd8 {[%clk 0:00:05.3]} 36.
Rxe8+ {[%clk 0:00:14.4]} 36... Kc7 {[%clk 0:00:04.9]} 37. Qc8+ {[%clk
0:00:14.5]} 37... Kb6 {[%clk 0:00:05]} 38. Be4 {[%clk 0:00:14.4]} 38... Qc4
{[%clk 0:00:01.3]} 39. Re6 {[%clk 0:00:13.8]} 1-0

[Event "*** Titled Tuesday Blitz"]
[Site "Chess.com"]
[Date "2020.05.19"]
[Round "8"]
[White "themind1hunter"]
[Black "Mizner"]
[Result "0-1"]
[WhiteElo "2385"]
[BlackElo "2553"]
[TimeControl "180+1"]
[EndTime "13:36:48 PDT"]
[Termination "Mizner won by resignation"]

1. d4 {[%clk 0:03:00.9]} 1... d5 {[%clk 0:02:59.9]} 2. c4 {[%clk 0:02:37]} 2...
e6 {[%clk 0:03:00.3]} 3. Nf3 {[%clk 0:02:37.1]} 3... Nf6 {[%clk 0:02:59.8]} 4.
g3 {[%clk 0:02:37.6]} 4... dxc4 {[%clk 0:03:00.3]} 5. Bg2 {[%clk 0:02:37.5]}
5... c5 {[%clk 0:03:00.8]} 6. O-O {[%clk 0:02:37.2]} 6... Nc6 {[%clk 0:03:01.2]}
7. Na3 {[%clk 0:02:36.2]} 7... cxd4 {[%clk 0:02:59.8]} 8. Nxc4 {[%clk
0:02:36.7]} 8... Bc5 {[%clk 0:02:59.8]} 9. a3 {[%clk 0:02:33.1]} 9... a5 {[%clk
0:02:53.2]} 10. Nfe5 {[%clk 0:02:32.2]} 10... Nxe5 {[%clk 0:02:43.4]} 11. Nxe5
{[%clk 0:02:25.9]} 11... O-O {[%clk 0:02:43.7]} 12. Bg5 {[%clk 0:02:25.2]} 12...
h6 {[%clk 0:02:40.7]} 13. Nd3 {[%clk 0:02:14.5]} 13... Be7 {[%clk 0:02:25.5]}
14. Bf4 {[%clk 0:02:00.1]} 14... Qb6 {[%clk 0:02:06.9]} 15. Rc1 {[%clk
0:01:53.3]} 15... Bd6 {[%clk 0:01:55.9]} 16. Qd2 {[%clk 0:01:46.2]} 16... Rd8
{[%clk 0:01:53.2]} 17. Rc4 {[%clk 0:01:35.5]} 17... Bd7 {[%clk 0:01:21.1]} 18.
Rfc1 {[%clk 0:01:16.4]} 18... Bb5 {[%clk 0:01:17.3]} 19. R4c2 {[%clk 0:01:09.4]}
19... Ba4 {[%clk 0:01:12.3]} 20. Bxd6 {[%clk 0:01:03.3]} 20... Qxd6 {[%clk
0:00:45.3]} 21. Rc7 {[%clk 0:01:00.8]} 21... Bc6 {[%clk 0:00:43.4]} 22. R7xc6
{[%clk 0:00:50.4]} 22... bxc6 {[%clk 0:00:43.1]} 23. Rxc6 {[%clk 0:00:51.3]}
23... Qd7 {[%clk 0:00:39.3]} 24. Ne5 {[%clk 0:00:50.3]} 24... Qe7 {[%clk
0:00:35.7]} 25. Rc4 {[%clk 0:00:47.7]} 25... Rac8 {[%clk 0:00:26.6]} 26. Nc6
{[%clk 0:00:47.2]} 26... Qe8 {[%clk 0:00:18.3]} 27. Rxd4 {[%clk 0:00:46]} 27...
Rxd4 {[%clk 0:00:16.7]} 28. Qxd4 {[%clk 0:00:46.1]} 28... Rxc6 {[%clk
0:00:15.2]} 29. Bxc6 {[%clk 0:00:44.4]} 29... Qxc6 {[%clk 0:00:16.1]} 30. Qd8+
{[%clk 0:00:45]} 30... Kh7 {[%clk 0:00:15.9]} 31. Qxa5 {[%clk 0:00:45.9]} 31...
Qc1+ {[%clk 0:00:16.1]} 32. Kg2 {[%clk 0:00:45.6]} 32... Qxb2 {[%clk 0:00:16.7]}
33. Kf1 {[%clk 0:00:43.7]} 33... Ne4 {[%clk 0:00:14.5]} 34. Qb4 {[%clk
0:00:40.1]} 34... Qxb4 {[%clk 0:00:13.9]} 35. axb4 {[%clk 0:00:41]} 35... Kg6
{[%clk 0:00:13.9]} 36. f3 {[%clk 0:00:41.2]} 36... Nc3 {[%clk 0:00:13]} 37. e4
{[%clk 0:00:41.6]} 37... Kf6 {[%clk 0:00:13.2]} 38. Kf2 {[%clk 0:00:41.6]} 38...
Ke5 {[%clk 0:00:13.3]} 39. Ke3 {[%clk 0:00:42.2]} 39... f5 {[%clk 0:00:12.7]}
40. Kd3 {[%clk 0:00:41.9]} 40... Nb5 {[%clk 0:00:12]} 41. f4+ {[%clk 0:00:40.2]}
41... Kd6 {[%clk 0:00:11.4]} 42. exf5 {[%clk 0:00:39.8]} 42... exf5 {[%clk
0:00:11.6]} 43. Kc4 {[%clk 0:00:40.7]} 43... Kc6 {[%clk 0:00:11.8]} 44. h3
{[%clk 0:00:41.2]} 44... h5 {[%clk 0:00:11.6]} 45. h4 {[%clk 0:00:38.8]} 45...
g6 {[%clk 0:00:11.8]} 46. Kb3 {[%clk 0:00:38.2]} 46... Kd5 {[%clk 0:00:11.5]}
47. Ka4 {[%clk 0:00:39.1]} 47... Kc4 {[%clk 0:00:10.3]} 48. Ka5 {[%clk 0:00:40]}
48... Nc3 {[%clk 0:00:10]} 49. Kb6 {[%clk 0:00:40]} 49... Kxb4 {[%clk 0:00:10]}
50. Kc6 {[%clk 0:00:40.9]} 50... Ne2 {[%clk 0:00:07.1]} 51. Kd6 {[%clk
0:00:41.8]} 51... Nxg3 {[%clk 0:00:07.3]} 52. Ke6 {[%clk 0:00:42.7]} 52... Ne2
{[%clk 0:00:07.2]} 53. Kf6 {[%clk 0:00:43.6]} 53... Nxf4 {[%clk 0:00:07.4]} 54.
Kg5 {[%clk 0:00:44.5]} 54... Ng2 {[%clk 0:00:07.7]} 55. Kxg6 {[%clk 0:00:45.4]}
55... Nxh4+ {[%clk 0:00:08.1]} 56. Kg5 {[%clk 0:00:46.3]} 56... Kc4 {[%clk
0:00:06.7]} 57. Kxh4 {[%clk 0:00:46.3]} 57... Kd4 {[%clk 0:00:07.6]} 58. Kxh5
{[%clk 0:00:46.9]} 58... Ke4 {[%clk 0:00:07.9]} 0-1

[Event "*** Titled Tuesday Blitz"]
[Site "Chess.com"]
[Date "2020.05.19"]
[Round "8"]
[White "killer311"]
[Black "2L8IWUN"]
[Result "0-1"]
[WhiteElo "2400"]
[BlackElo "2538"]
[TimeControl "180+1"]
[EndTime "13:36:48 PDT"]
[Termination "2L8IWUN won by resignation"]

1. d4 {[%clk 0:03:00.8]} 1... Nf6 {[%clk 0:02:59.5]} 2. c4 {[%clk 0:03:01.3]}
2... e6 {[%clk 0:02:59.8]} 3. Nc3 {[%clk 0:03:00.6]} 3... d5 {[%clk 0:03:00.7]}
4. e3 {[%clk 0:03:00.2]} 4... Nbd7 {[%clk 0:02:59.7]} 5. Nf3 {[%clk 0:03:00.1]}
5... a6 {[%clk 0:03:00.2]} 6. cxd5 {[%clk 0:02:57.8]} 6... exd5 {[%clk
0:03:01.1]} 7. Bd3 {[%clk 0:02:58.3]} 7... Bd6 {[%clk 0:03:00.7]} 8. O-O {[%clk
0:02:58.7]} 8... O-O {[%clk 0:03:01.3]} 9. b3 {[%clk 0:02:55.7]} 9... b6 {[%clk
0:03:01.2]} 10. Bb2 {[%clk 0:02:56.1]} 10... Bb7 {[%clk 0:03:01.8]} 11. Rc1
{[%clk 0:02:55.5]} 11... Re8 {[%clk 0:03:02.2]} 12. Ne2 {[%clk 0:02:51.8]} 12...
Ne4 {[%clk 0:03:01.5]} 13. Ng3 {[%clk 0:02:51.9]} 13... g6 {[%clk 0:02:56.4]}
14. Qe2 {[%clk 0:02:48.2]} 14... f5 {[%clk 0:02:45]} 15. Rfe1 {[%clk 0:02:39.5]}
15... Qf6 {[%clk 0:02:37]} 16. Bxe4 {[%clk 0:02:31.1]} 16... fxe4 {[%clk
0:02:27.9]} 17. Nd2 {[%clk 0:02:31]} 17... h5 {[%clk 0:02:21.2]} 18. f4 {[%clk
0:02:27.2]} 18... exf3 {[%clk 0:01:37.8]} 19. Nxf3 {[%clk 0:02:26]} 19... Re7
{[%clk 0:01:18.7]} 20. Rf1 {[%clk 0:02:13.3]} 20... Qe6 {[%clk 0:01:14.7]} 21.
Rce1 {[%clk 0:02:06.6]} 21... Rae8 {[%clk 0:01:07.4]} 22. Ng5 {[%clk 0:01:52.2]}
22... Qxe3+ {[%clk 0:01:05.2]} 23. Qxe3 {[%clk 0:01:50.5]} 23... Rxe3 {[%clk
0:01:06.1]} 24. Rxe3 {[%clk 0:01:50.9]} 24... Rxe3 {[%clk 0:01:06]} 25. Kf2
{[%clk 0:01:45]} 25... Re8 {[%clk 0:01:03.6]} 26. Re1 {[%clk 0:01:40.8]} 26...
Rxe1 {[%clk 0:00:59.9]} 27. Kxe1 {[%clk 0:01:41.7]} 27... a5 {[%clk 0:00:57.2]}
28. Kf2 {[%clk 0:01:36.4]} 28... Kg7 {[%clk 0:00:55]} 29. Nf3 {[%clk 0:01:33.4]}
29... Kf6 {[%clk 0:00:54.9]} 30. Ne2 {[%clk 0:01:30.9]} 30... Nf8 {[%clk
0:00:54.1]} 31. Ne5 {[%clk 0:01:29.5]} 31... Ne6 {[%clk 0:00:51]} 32. Ke3 {[%clk
0:01:27.5]} 32... g5 {[%clk 0:00:41.1]} 33. g3 {[%clk 0:01:26.8]} 33... Kf5
{[%clk 0:00:36.3]} 34. Nd3 {[%clk 0:01:22.5]} 34... Ba6 {[%clk 0:00:35.1]} 35.
Nf2 {[%clk 0:01:21.1]} 35... Bxe2 {[%clk 0:00:35.2]} 36. Kxe2 {[%clk 0:01:22]}
36... h4 {[%clk 0:00:30.8]} 37. g4+ {[%clk 0:01:21.1]} 37... Kg6 {[%clk
0:00:29.8]} 38. h3 {[%clk 0:01:21.8]} 38... Bg3 {[%clk 0:00:29.5]} 39. Nd3
{[%clk 0:01:17.9]} 39... Bd6 {[%clk 0:00:27.7]} 40. Ke3 {[%clk 0:01:15.3]} 40...
Bf4+ {[%clk 0:00:25.7]} 41. Kf3 {[%clk 0:01:14]} 41... Kf6 {[%clk 0:00:26]} 42.
Bc3 {[%clk 0:01:09.7]} 42... Bd6 {[%clk 0:00:25.4]} 43. Bb2 {[%clk 0:01:08.8]}
43... Kf7 {[%clk 0:00:23.1]} 44. Bc3 {[%clk 0:01:08.3]} 44... Ke7 {[%clk
0:00:23.4]} 45. Bb2 {[%clk 0:01:07.1]} 45... c5 {[%clk 0:00:22.8]} 46. dxc5
{[%clk 0:01:05.4]} 46... bxc5 {[%clk 0:00:23.7]} 47. Bc3 {[%clk 0:01:04.7]}
47... Bc7 {[%clk 0:00:20]} 48. Nf2 {[%clk 0:01:02.8]} 48... Nf4 {[%clk
0:00:19.8]} 49. Bd2 {[%clk 0:01:01.4]} 49... Ke6 {[%clk 0:00:19.6]} 50. Nd3
{[%clk 0:01:00.5]} 50... Nxd3 {[%clk 0:00:19.8]} 51. Bxg5 {[%clk 0:00:58.7]}
51... Ne5+ {[%clk 0:00:20.4]} 52. Ke2 {[%clk 0:00:58.2]} 52... Ng6 {[%clk
0:00:20.7]} 53. Be3 {[%clk 0:00:56.9]} 53... d4 {[%clk 0:00:20.5]} 54. Bd2
{[%clk 0:00:56.4]} 54... Nf4+ {[%clk 0:00:19.6]} 55. Kf3 {[%clk 0:00:56.6]}
55... Nxh3 {[%clk 0:00:19.8]} 56. Kg2 {[%clk 0:00:56.9]} 56... Nf4+ {[%clk
0:00:19.5]} 57. Kf3 {[%clk 0:00:57.5]} 57... h3 {[%clk 0:00:19.1]} 58. g5 {[%clk
0:00:56.4]} 58... h2 {[%clk 0:00:19.1]} 0-1

[Event "*** Titled Tuesday Blitz"]
[Site "Chess.com"]
[Date "2020.05.19"]
[Round "8"]
[White "UmutErdemGunduz"]
[Black "GMartin_Petrov"]
[Result "1-0"]
[WhiteElo "2474"]
[BlackElo "2595"]
[TimeControl "180+1"]
[EndTime "13:36:52 PDT"]
[Termination "UmutErdemGunduz won by resignation"]

1. e4 {[%clk 0:03:00.9]} 1... c5 {[%clk 0:02:59]} 2. Nf3 {[%clk 0:03:00.6]} 2...
d6 {[%clk 0:02:58.6]} 3. d4 {[%clk 0:03:00.9]} 3... cxd4 {[%clk 0:02:59.5]} 4.
Nxd4 {[%clk 0:03:01.3]} 4... Nf6 {[%clk 0:02:59.3]} 5. f3 {[%clk 0:03:01.7]}
5... e5 {[%clk 0:02:58.1]} 6. Nb3 {[%clk 0:03:01.3]} 6... Be6 {[%clk 0:02:57.3]}
7. c4 {[%clk 0:03:00.8]} 7... Be7 {[%clk 0:02:52.9]} 8. Be3 {[%clk 0:02:59.7]}
8... O-O {[%clk 0:02:50.6]} 9. Nc3 {[%clk 0:03:00]} 9... a5 {[%clk 0:02:51.2]}
10. Qd2 {[%clk 0:02:57.4]} 10... a4 {[%clk 0:02:50.8]} 11. Nc1 {[%clk
0:02:57.9]} 11... Qa5 {[%clk 0:02:46.1]} 12. Be2 {[%clk 0:02:55.6]} 12... Nc6
{[%clk 0:02:42.8]} 13. b3 {[%clk 0:02:53.4]} 13... axb3 {[%clk 0:02:38.5]} 14.
Nxb3 {[%clk 0:02:54.3]} 14... Qb4 {[%clk 0:02:22.7]} 15. Nd5 {[%clk 0:02:52.4]}
15... Bxd5 {[%clk 0:02:19.6]} 16. cxd5 {[%clk 0:02:51.3]} 16... Qxd2+ {[%clk
0:02:16.6]} 17. Kxd2 {[%clk 0:02:52.2]} 17... Na5 {[%clk 0:02:06.7]} 18. Rhc1
{[%clk 0:02:38.5]} 18... Bd8 {[%clk 0:01:56.1]} 19. Bb5 {[%clk 0:02:24.9]} 19...
Nh5 {[%clk 0:01:44.7]} 20. g3 {[%clk 0:02:17.5]} 20... g6 {[%clk 0:01:44.7]} 21.
Kd3 {[%clk 0:02:02.5]} 21... f5 {[%clk 0:01:43.8]} 22. Nxa5 {[%clk 0:01:53.9]}
22... fxe4+ {[%clk 0:01:37.9]} 23. fxe4 {[%clk 0:01:52.2]} 23... Bxa5 {[%clk
0:01:35.8]} 24. a4 {[%clk 0:01:48.1]} 24... Nf6 {[%clk 0:01:29.8]} 25. Rf1
{[%clk 0:01:39.6]} 25... Ng4 {[%clk 0:01:22.3]} 26. Bg1 {[%clk 0:01:33.7]} 26...
Rac8 {[%clk 0:01:14.9]} 27. Rxf8+ {[%clk 0:01:25]} 27... Kxf8 {[%clk 0:01:15.8]}
28. Bc4 {[%clk 0:01:15.5]} 28... Ke7 {[%clk 0:01:09.6]} 29. Rb1 {[%clk
0:01:09.6]} 29... Rc7 {[%clk 0:01:04.7]} 30. Rb5 {[%clk 0:01:05.2]} 30... Be1
{[%clk 0:00:54.7]} 31. Rb2 {[%clk 0:01:01.6]} 31... Ba5 {[%clk 0:00:47.2]} 32.
Rb5 {[%clk 0:00:56.3]} 32... Be1 {[%clk 0:00:46.2]} 33. Rb2 {[%clk 0:00:56.8]}
33... Nf6 {[%clk 0:00:46.3]} 34. Bb6 {[%clk 0:00:51]} 34... Rc8 {[%clk
0:00:45.8]} 35. Rb1 {[%clk 0:00:35.4]} 35... Nd7 {[%clk 0:00:40]} 36. Be3 {[%clk
0:00:22]} 36... Ba5 {[%clk 0:00:29.3]} 37. Rxb7 {[%clk 0:00:22.2]} 37... Rc7
{[%clk 0:00:14.6]} 38. Rxc7 {[%clk 0:00:22.1]} 38... Bxc7 {[%clk 0:00:15.5]} 39.
Bb5 {[%clk 0:00:22.7]} 39... Bb6 {[%clk 0:00:12.2]} 40. Bxd7 {[%clk 0:00:22.2]}
40... Bxe3 {[%clk 0:00:11.8]} 41. Kxe3 {[%clk 0:00:21.8]} 41... Kxd7 {[%clk
0:00:12.2]} 42. Kd3 {[%clk 0:00:15.6]} 42... Kc7 {[%clk 0:00:13.1]} 43. Kc4
{[%clk 0:00:16]} 43... Kb6 {[%clk 0:00:12.8]} 44. Kb4 {[%clk 0:00:16]} 44... Ka6
{[%clk 0:00:13.1]} 45. a5 {[%clk 0:00:16.3]} 45... g5 {[%clk 0:00:12.5]} 46. h3
{[%clk 0:00:15.7]} 46... Ka7 {[%clk 0:00:12.4]} 47. Kb5 {[%clk 0:00:15.8]} 47...
Kb7 {[%clk 0:00:12]} 48. a6+ {[%clk 0:00:16.3]} 48... Ka7 {[%clk 0:00:12.9]} 49.
Kc6 {[%clk 0:00:16.5]} 1-0